bitfinex-derivatives/quotes_ETHF0:USTF0_20230830
["timestamp","ask_amount","ask_price","bid_price","bid_amount"]
[1693374490395,239.3608959,1719.2,1719.1,23.75396793]
[1693374490598,239.3608959,1719.2,1719.1,19.20605356]
[1693374490799,238.7791959,1719.2,1719.1,19.20605356]
[1693374491798,238.1974959,1719.2,1719.1,19.20605356]
[1693374492195,237.6157959,1719.2,1719.1,19.20605356]
[1693374492593,237.0340959,1719.2,1719.1,19.20605356]
[1693374493402,236.4523959,1719.2,1719.1,19.20605356]
[1693374493902,234.43711414,1719.2,1719.1,19.20605356]
[1693374494302,235.2889959,1719.2,1719.1,19.20605356]
[1693374494603,235.2889959,1719.2,1719.1,19.20602313]
[1693374494902,234.7072959,1719.2,1719.1,19.20602313]
[1693374495102,234.1255959,1719.2,1719.1,19.20602313]
[1693374495404,234.1255959,1719.2,1719.1,23.02343854]
[1693374495703,233.5438959,1719.2,1719.1,23.02343854]
[1693374496205,232.9621959,1719.2,1719.1,23.02343854]
[1693374496503,232.3804959,1719.2,1719.1,23.02343854]
[1693374496903,231.7987959,1719.2,1719.1,23.02343854]
[1693374497303,231.2170959,1719.2,1719.1,19.20602313]
[1693374497700,230.6353959,1719.2,1719.1,22.25995064]
[1693374498100,230.0536959,1719.2,1719.1,22.25995064]
[1693374498508,229.4719959,1719.2,1719.1,22.25995064]
[1693374499410,228.8902959,1719.2,1719.1,19.20602313]
[1693374499609,228.8902959,1719.2,1719.1,21.49648738]
[1693374499806,228.3085959,1719.2,1719.1,21.49648738]
[1693374500206,227.7268959,1719.2,1719.1,21.49648738]
[1693374500707,225.71161414,1719.2,1719.1,21.49648738]
[1693374501108,226.5634959,1719.2,1719.1,21.49648738]
[1693374501307,226.5634959,1719.2,1719.1,20.73299861]
[1693374501507,225.9817959,1719.2,1719.1,17.82408355]
[1693374501911,225.4000959,1719.2,1719.1,17.82408355]
[1693374502410,224.8183959,1719.2,1719.1,16.29710807]
[1693374502805,224.2366959,1719.2,1719.1,16.29710807]
[1693374503214,223.6549959,1719.2,1719.1,16.29710807]
[1693374503608,223.0732959,1719.2,1719.1,17.82408355]
[1693374504112,222.4915959,1719.2,1719.1,17.82408355]
[1693374504511,221.9098959,1719.2,1719.1,17.82408355]
[1693374505114,221.3281959,1719.2,1719.1,17.82408355]
[1693374505412,220.7464959,1719.2,1719.1,17.82408355]
[1693374505711,220.1647959,1719.2,1719.1,17.82408355]
[1693374506216,219.5830959,1719.2,1719.1,17.82408355]
[1693374506810,219.0013959,1719.2,1719.1,17.82408355]
[1693374507012,218.4196959,1719.2,1719.1,17.82408355]
[1693374507510,217.8379959,1719.2,1719.1,17.82408355]
[1693374507913,217.2562959,1719.2,1719.1,17.82408355]
[1693374508315,216.6745959,1719.2,1719.1,17.82408355]
[1693374508818,216.0928959,1719.2,1719.1,17.82408355]
[1693374509114,215.5111959,1719.2,1719.1,17.82408355]
[1693374509515,214.9294959,1719.2,1719.1,17.82408355]
[1693374510610,214.3477959,1719.2,1719.1,16.29710807]
[1693374510810,213.7660959,1719.2,1719.1,16.29710807]
[1693374511318,213.1843959,1719.2,1719.1,16.29710807]
[1693374511719,212.6026959,1719.2,1719.1,16.29710807]
[1693374512316,212.0209959,1719.2,1719.1,16.29710807]
[1693374512519,211.4392959,1719.2,1719.1,16.29710807]
[1693374512920,210.8575959,1719.2,1719.1,16.29710807]
[1693374513821,210.2758959,1719.2,1719.1,16.29710807]
[1693374514623,209.6941959,1719.2,1719.1,16.29710807]
[1693374515022,209.1124959,1719.2,1719.1,16.29710807]
[1693374515617,207.09721414,1719.2,1719.1,16.29710807]
[1693374516123,208.5307959,1719.2,1719.1,16.29710807]
[1693374516321,207.9490959,1719.2,1719.1,16.29710807]
[1693374516817,207.3673959,1719.2,1719.1,16.29710807]
[1693374517618,206.7856959,1719.2,1719.1,16.29710807]
[1693374518118,206.2039959,1719.2,1719.1,16.29710807]
[1693374519026,205.6222959,1719.2,1719.1,16.29710807]
[1693374519723,205.0405959,1719.2,1719.1,16.29710807]
[1693374520716,204.4588959,1719.2,1719.1,16.29710807]
[1693374521121,203.8771959,1719.2,1719.1,16.29710807]
[1693374521525,203.2954959,1719.2,1719.1,16.29710807]
[1693374521929,202.7137959,1719.2,1719.1,16.29710807]
[1693374522429,202.1320959,1719.2,1719.1,16.29710807]
[1693374523225,201.5503959,1719.2,1719.1,16.29710807]
[1693374523530,200.9686959,1719.2,1719.1,16.29710807]
[1693374524224,200.3869959,1719.2,1719.1,16.29710807]
[1693374524424,199.8052959,1719.2,1719.1,16.29710807]
[1693374525335,199.2235959,1719.2,1719.1,16.29710807]
[1693374525731,198.6418959,1719.2,1719.1,17.82419975]
[1693374526333,198.2924959,1719.2,1719.1,14.61639975]
[1693374527236,198.2924959,1719.2,1719.1,17.82419975]
[1693374533839,198.2924959,1719.2,1719.1,16.29710807]
[1693374549154,198.2924959,1719.2,1719.1,8.90468332]
[1693374549554,198.2924959,1719.2,1719.1,16.3340858]
[1693374559064,196.85891414,1719.2,1719.1,16.3340858]
[1693374561272,196.85891414,1719.2,1719.1,13.1262858]
[1693374561570,196.85891414,1719.2,1719.1,16.3340858]
[1693374561766,198.2924959,1719.2,1719.1,16.3340858]
[1693374564167,198.2924959,1719.2,1719.1,17.86117748]
[1693374564364,194.42171414,1719.2,1719.1,17.86117748]
[1693374564566,191.51451414,1719.2,1719.1,23.06057048]
[1693374564874,190.82591416,1719.2,1719.1,22.6965788]
[1693374565065,190.82591416,1719.2,1719.1,23.46012464]
[1693374565473,190.82591416,1719.2,1719.1,22.69503673]
[1693374565669,190.66391416,1719.2,1719.1,22.69503673]
[1693374566170,190.08221416,1719.2,1719.1,22.69503673]
[1693374566674,189.50051416,1719.2,1719.1,22.69503673]
[1693374566975,188.91881416,1719.2,1719.1,22.69503673]
[1693374567271,188.33711416,1719.2,1719.1,22.69503673]
[1693374567967,187.75541416,1719.2,1719.1,22.69503673]
[1693374568169,187.17371416,1719.2,1719.1,22.69503673]
[1693374568571,186.59201416,1719.2,1719.1,22.69503673]
[1693374569074,186.01031416,1719.2,1719.1,22.69503673]
[1693374569374,186.01031416,1719.2,1719.1,24.22021472]
[1693374569574,185.42861416,1719.2,1719.1,24.22021472]
[1693374569876,184.84691416,1719.2,1719.1,24.22021472]
[1693374570374,184.26521416,1719.2,1719.1,24.22021472]
[1693374570679,183.68351416,1719.2,1719.1,24.22021472]
[1693374571175,183.10181416,1719.2,1719.1,24.22021472]
[1693374571477,183.10181416,1719.2,1719.1,21.93111927]
[1693374571675,182.52011416,1719.2,1719.1,21.93111927]
[1693374572067,181.93841416,1719.2,1719.1,21.93111927]
[1693374572575,181.35671416,1719.2,1719.1,21.93111927]
[1693374572771,180.77501416,1719.2,1719.1,21.93111927]
[1693374573277,180.19331416,1719.2,1719.1,21.93111927]
[1693374573679,179.61161416,1719.2,1719.1,21.93111927]
[1693374574081,179.02991416,1719.2,1719.1,21.93111927]
[1693374574979,178.44821416,1719.2,1719.1,21.93111927]
[1693374575380,177.86651416,1719.2,1719.1,21.93111927]
[1693374575882,177.28481416,1719.2,1719.1,21.93111927]
[1693374576381,176.70311416,1719.2,1719.1,21.93111927]
[1693374576576,176.70311416,1719.2,1719.1,19.02236379]
[1693374577080,176.12141416,1719.2,1719.1,19.02236379]
[1693374577281,176.12141416,1719.2,1719.1,21.93091015]
[1693374577474,175.53971416,1719.2,1719.1,21.93091015]
[1693374577882,174.95801416,1719.2,1719.1,21.93091015]
[1693374578083,177.48101416,1719.2,1719.1,21.93091015]
[1693374578487,176.89931416,1719.2,1719.1,21.93091015]
[1693374578883,176.31761416,1719.2,1719.1,21.93091015]
[1693374579686,175.73591416,1719.2,1719.1,21.93091015]
[1693374580084,175.15421416,1719.2,1719.1,21.93091015]
[1693374580484,175.15421416,1719.2,1719.1,19.02236379]
[1693374580485,174.57251416,1719.2,1719.1,19.02236379]
[1693374580984,173.99081416,1719.2,1719.1,19.02236379]
[1693374581489,172.93911416,1719.2,1719.1,19.02236379]
[1693374581885,172.35741416,1719.2,1719.1,19.02236379]
[1693374582084,172.35741416,1719.2,1719.1,21.93090136]
[1693374582280,171.77571416,1719.2,1719.1,21.93090136]
[1693374582581,171.19401416,1719.2,1719.1,19.02236379]
[1693374583188,170.61231416,1719.2,1719.1,19.02236379]
[1693374583590,170.03061416,1719.2,1719.1,19.02236379]
[1693374583989,169.44891416,1719.2,1719.1,19.02236379]
[1693374584493,168.86721416,1719.2,1719.1,19.02236379]
[1693374584993,168.28551416,1719.2,1719.1,19.02236379]
[1693374585185,170.26191416,1719.2,1719.1,19.02236379]
[1693374585578,169.68021416,1719.2,1719.1,19.02236379]
[1693374585782,171.11379592,1719.2,1719.1,19.02236379]
[1693374585978,170.53209592,1719.2,1719.1,19.02236379]
[1693374586585,169.95039592,1719.2,1719.1,21.93090279]
[1693374586889,169.36869592,1719.2,1719.1,19.02236379]
[1693374587278,168.78699592,1719.2,1719.1,19.02236379]
[1693374587890,168.20529592,1719.2,1719.1,19.02236379]
[1693374588390,167.62359592,1719.2,1719.1,19.02236379]
[1693374588590,167.04189592,1719.2,1719.1,19.02236379]
[1693374589091,166.46019592,1719.2,1719.1,19.02236379]
[1693374589488,165.87849592,1719.2,1719.1,19.02236379]
[1693374589889,165.29679592,1719.2,1719.1,19.02236379]
[1693374590291,163.28151416,1719.2,1719.1,19.02236379]
[1693374590592,164.71509592,1719.2,1719.1,19.02236379]
[1693374590793,164.13339592,1719.2,1719.1,19.02236379]
[1693374591093,163.55169592,1719.2,1719.1,19.02246379]
[1693374591586,162.96999592,1719.2,1719.1,19.02246379]
[1693374592086,162.38829592,1719.2,1719.1,19.02246379]
[1693374592493,161.80659592,1719.2,1719.1,19.02246379]
[1693374592794,161.22489592,1719.2,1719.1,19.02246379]
[1693374593893,161.12639592,1719.2,1719.1,19.02246379]
[1693374596190,159.69281416,1719.2,1719.1,19.02246379]
[1693374597897,159.69281416,1719.2,1719.1,21.93104936]
[1693374598092,159.69281416,1719.2,1719.1,19.02246379]
[1693374598300,159.69281416,1719.2,1719.1,21.93105358]
[1693374598695,159.69281416,1719.2,1719.1,19.02246379]
[1693374599099,161.12639592,1719.2,1719.1,21.93104564]
[1693374600194,159.69281416,1719.2,1719.1,21.93104564]
[1693374602396,159.69281416,1719.2,1719.1,24.22014109]
[1693374602699,161.12639592,1719.2,1719.1,24.22014109]
[1693374604504,159.69281416,1719.2,1719.1,24.22014109]
[1693374606104,161.12639592,1719.2,1719.1,24.22014109]
[1693374606400,161.12639592,1719.2,1719.1,22.6949631]
[1693374615509,161.09489592,1719.2,1719.1,22.6949631]
[1693374619610,159.18791416,1719.2,1719.1,22.6949631]
[1693374621309,160.62149592,1719.2,1719.1,22.6949631]
[1693374621710,160.37969592,1719.2,1719.1,22.6949631]
[1693374622412,160.37969592,1719.2,1719.1,22.69611448]
[1693374623808,160.37969592,1719.2,1719.1,23.45953562]
[1693374632122,160.38075966,1719.2,1719.1,23.45953562]
[1693374635228,160.38075966,1719.2,1719.1,22.69528143]
[1693374642328,160.31115966,1719.2,1719.1,22.69528143]
[1693374647638,160.31115966,1719.2,1719.1,20.40585106]
[1693374655938,160.27565966,1719.2,1719.1,20.40585106]
[1693374656341,160.27565966,1719.2,1719.1,12.97644858]
[1693374656542,160.27565966,1719.2,1719.1,20.53311617]
[1693374661753,160.27565966,1719.2,1719.1,23.58680073]
[1693374674773,160.27565966,1719.2,1719.1,23.58680073]
[1693374683179,160.27565966,1719.2,1719.1,20.37900073]
[1693374683676,160.27565966,1719.2,1719.1,23.58680073]
[1693374686985,160.27565966,1719.2,1719.1,20.37900073]
[1693374687382,160.27565966,1719.2,1719.1,23.58680073]
[1693374687784,160.27565966,1719.2,1719.1,15.29711617]
[1693374687980,160.27565966,1719.2,1719.1,20.53311617]
[1693374692196,160.27565966,1719.2,1719.1,23.58680073]
[1693374698408,160.27565966,1719.2,1719.1,20.53311617]
[1693374700906,160.27565966,1719.2,1719.1,22.82331708]
[1693374703411,160.23365966,1719.2,1719.1,22.82331708]
[1693374706114,160.23365966,1719.2,1719.1,20.53311617]
[1693374707413,160.23365966,1719.2,1719.1,22.82321359]
[1693374707609,160.17305966,1719.2,1719.1,22.82321359]
[1693374711616,160.17305966,1719.2,1719.1,20.53311617]
[1693374714218,160.17305966,1719.2,1719.1,23.58680073]
[1693374714519,160.17305966,1719.2,1719.1,23.58647265]
[1693374715021,160.17305966,1719.2,1719.1,20.53307308]
[1693374719524,160.17305966,1719.2,1719.1,23.58647265]
[1693374720518,160.17305966,1719.2,1719.1,20.53307308]
[1693374721330,160.17305966,1719.2,1719.1,22.82314308]
[1693374759466,160.17305966,1719.2,1719.1,22.76784445]
[1693374765473,163.98947933,1719.2,1719.1,22.76784445]
[1693374766372,160.17305966,1719.2,1719.1,22.76784445]
[1693374770776,163.98947933,1719.2,1719.1,22.76784445]
[1693374774883,163.98947933,1719.2,1719.1,17.93291228]
[1693374775189,160.17305966,1719.2,1719.1,17.93291228]
[1693374775386,163.98767718,1719.2,1719.1,17.93291228]
[1693374775689,160.17305966,1719.2,1719.1,3.66868332]
[1693374775990,165.51570113,1719.2,1719.0,5.236]
[1693374776183,7.13787891,1719.1,1718.8,5.236]
[1693374776490,3.81069014,1718.9,1718.8,5.236]
[1693374776790,6.08062662,1718.9,1718.8,5.236]
[1693374776988,6.08062844,1718.9,1718.8,5.236]
[1693374777193,6.08832271,1718.9,1718.8,5.236]
[1693374777586,160.74648904,1719.2,1718.9,5.236]
[1693374777587,157.09849351,1719.2,1718.9,5.236]
[1693374777785,140.67930182,1719.2,1719.1,8.68751989]
[1693374778092,127.34213014,1719.2,1719.1,20.44290048]
[1693374778395,126.76033014,1719.2,1719.1,24.14641872]
[1693374778883,126.17863014,1719.2,1719.1,24.14641872]
[1693374779285,125.59693014,1719.2,1719.1,24.14641872]
[1693374779680,125.01523014,1719.2,1719.1,24.14641872]
[1693374780082,124.43353014,1719.2,1719.1,24.14641872]
[1693374780281,125.8671119,1719.2,1719.1,24.14641872]
[1693374780487,123.85183014,1719.2,1719.1,24.14641872]
[1693374781291,123.27013014,1719.2,1719.1,24.14641872]
[1693374781488,122.39767668,1719.2,1719.1,24.14641872]
[1693374781690,121.81597668,1719.2,1719.1,24.14641872]
[1693374782290,121.23427668,1719.2,1719.1,24.14641872]
[1693374782691,120.65257668,1719.2,1719.1,24.14641872]
[1693374782890,120.19201784,1719.2,1719.1,24.14641872]
[1693374783092,119.61031784,1719.2,1719.1,24.14641872]
[1693374783486,119.02861784,1719.2,1719.1,24.14641872]
[1693374783887,118.44691784,1719.2,1719.1,21.87648224]
[1693374784390,117.86521784,1719.2,1719.1,21.87648224]
[1693374784792,117.28351784,1719.2,1719.1,21.87648224]
[1693374785189,116.70181784,1719.2,1719.1,21.87648224]
[1693374785688,116.12011784,1719.2,1719.1,21.87648224]
[1693374785893,115.53841784,1719.2,1719.1,21.87648224]
[1693374786496,114.95671784,1719.2,1719.1,21.87648224]
[1693374786790,88.3579592,1719.2,1719.1,24.87648224]
[1693374787002,26.23521788,1719.2,1719.1,38.11415816]
[1693374787196,21.15838016,1719.2,1719.1,38.11415816]
[1693374787398,20.60511387,1719.2,1719.1,39.62160621]
[1693374787697,19.44141387,1719.2,1719.1,39.62160621]
[1693374787885,18.85941387,1719.2,1719.1,39.62160621]
[1693374788090,18.27112982,1719.2,1719.1,39.62160621]
[1693374788291,17.68912982,1719.2,1719.1,39.62160621]
[1693374788497,17.10742982,1719.2,1719.1,39.62160621]
[1693374789290,16.52572982,1719.2,1719.1,38.85014271]
[1693374789798,15.94402982,1719.2,1719.1,38.8496763]
[1693374790099,15.36232982,1719.2,1719.1,39.62160621]
[1693374790494,14.78062982,1719.2,1719.1,39.62160621]
[1693374790798,14.78062982,1719.2,1719.1,39.61760621]
[1693374790998,14.19892982,1719.2,1719.1,39.61760621]
[1693374791387,13.61722982,1719.2,1719.1,39.61760621]
[1693374791794,13.03552982,1719.2,1719.1,39.61760621]
[1693374792298,12.45382982,1719.2,1719.1,39.61760621]
[1693374792694,7.51148309,1719.2,1719.1,39.61760621]
[1693374792896,7.51148309,1719.2,1719.1,39.61770621]
[1693374793093,6.92978309,1719.2,1719.1,39.61770621]
[1693374793592,6.34808309,1719.2,1719.1,39.61770621]
[1693374794096,5.76638309,1719.2,1719.1,39.61770621]
[1693374794595,5.18468309,1719.2,1719.1,39.61770621]
[1693374794796,4.60298309,1719.2,1719.1,61.79570621]
[1693374795197,4.02128309,1719.2,1719.1,61.79570621]
[1693374795794,3.43958309,1719.2,1719.1,61.79570621]
[1693374795994,3.2078,1721.0,1720.3,3.0]
[1693374796305,3.2078,1721.3,1720.9,7.90722085]
[1693374796489,4.89663648,1721.3,1721.2,5.232]
[1693374796693,3.70351824,1721.3,1721.2,5.232]
[1693374796893,3.70351824,1721.3,1721.2,12.74233342]
[1693374797196,3.12251824,1721.3,1721.2,12.74233342]
[1693374797403,3.2078,1721.3,1721.2,12.74233342]
[1693374797795,4.06038176,1721.3,1721.2,12.74233342]
[1693374798001,4.06612637,1721.3,1721.2,12.74233342]
[1693374798196,3.76832637,1721.3,1721.2,12.74233342]
[1693374798999,3.76258176,1721.3,1721.2,12.74233342]
[1693374799602,3.76258176,1721.3,1720.8,5.232]
[1693374799802,3.2078,1721.2,1720.7,1.1621]
[1693374800101,3.21353756,1721.2,1721.1,5.232]
[1693374800308,4.64711932,1721.2,1721.1,5.232]
[1693374800502,4.64711932,1721.2,1721.1,2.9742]
[1693374800705,4.64711932,1721.2,1720.8,5.232]
[1693374800999,4.64711932,1721.2,1721.1,5.232]
[1693374801203,4.64138176,1721.2,1721.1,5.232]
[1693374801407,4.64138176,1721.2,1721.1,0.0482]
[1693374801901,4.64138176,1721.2,1720.8,5.232]
[1693374802101,4.64711932,1721.2,1721.1,5.232]
[1693374802303,4.64711932,1721.2,1721.1,5.23]
[1693374802509,4.64711932,1721.2,1721.1,1.8249]
[1693374802697,4.64711932,1721.2,1721.1,8.135]
[1693374802896,4.64711932,1721.2,1721.1,6.9838]
[1693374803095,4.64711932,1721.2,1721.1,3.1366]
[1693374803300,4.64711932,1721.2,1720.7,9.77027526]
[1693374803502,4.64711932,1721.2,1721.1,8.135]
[1693374803907,4.64711932,1721.2,1721.1,5.8002]
[1693374805602,4.64711932,1721.2,1721.1,5.6289]
[1693374805803,0.8370702,1721.8,1721.5,1.1615]
[1693374806004,0.8370702,1721.8,1721.7,8.135]
[1693374806307,0.5538702,1721.8,1721.7,19.10226294]
[1693374806708,3.1808702,1721.9,1721.7,19.10226294]
[1693374806911,1.43358176,1721.8,1721.7,10.96726294]
[1693374807109,0.00512182,1721.8,1721.7,19.10226294]
[1693374807305,3.2078,1722.5,1721.9,8.135]
[1693374807514,4.1614,1722.5,1722.2,8.135]
[1693374807711,3.0486,1722.3,1722.2,8.135]
[1693374808014,0.00455685,1722.3,1722.2,17.1494203]
[1693374808212,4.38479333,1722.3,1722.2,15.71583854]
[1693374808608,1.17699333,1722.3,1722.2,15.71583854]
[1693374809205,1.06389333,1722.3,1722.2,17.1494203]
[1693374809406,1.06389333,1722.3,1722.2,15.71583854]
[1693374809711,1.06389333,1722.3,1722.2,17.1494203]
[1693374809901,0.59639333,1722.3,1722.2,15.71583854]
[1693374810105,0.60077249,1722.3,1722.2,15.71583854]
[1693374810411,3.80857249,1722.3,1721.7,3.67836636]
[1693374810606,3.2078,1722.0,1721.8,8.135]
[1693374810807,0.59639333,1721.9,1721.8,12.66636372]
[1693374811014,0.60074429,1721.9,1721.7,7.52397666]
[1693374811214,3.2078,1721.8,1721.6,8.135]
[1693374811708,0.59639333,1721.7,1721.4,4.3694]
[1693374811916,0.59639333,1721.7,1721.6,8.135]
[1693374812214,0.59639333,1721.7,1721.6,15.51231381]
[1693374812408,0.59639333,1721.7,1721.6,7.53491381]
[1693374812617,0.59639333,1721.7,1721.6,0.76211381]
[1693374813013,0.59639333,1721.7,1721.6,8.135]
[1693374813317,0.59639333,1721.7,1721.6,7.8828]
[1693374813711,0.59639333,1721.7,1721.6,3.4099]
[1693374813911,0.59639333,1721.7,1721.5,2.5505]
[1693374814213,3.2078,1721.6,1721.5,2.5505]
[1693374814417,3.2078,1721.6,1721.5,5.5845]
[1693374814719,3.80419333,1721.6,1721.4,8.135]
[1693374815016,0.00418942,1721.5,1721.4,8.135]
[1693374817916,1.17037047,1721.6,1721.4,8.135]
[1693374818215,0.00402829,1721.5,1721.4,8.135]
[1693374819224,8.13902829,1721.5,1721.1,8.135]
[1693374819418,3.2078,1721.4,1721.1,8.135]
[1693374819619,0.59639333,1721.3,1721.1,15.85655753]
[1693374820118,0.00400713,1721.2,1721.1,15.85655753]
[1693374821320,0.00400713,1721.2,1721.0,8.135]
[1693374821519,0.59639333,1721.1,1721.0,8.135]
[1693374821720,0.59639333,1721.1,1721.0,15.58993216]
[1693374822225,0.6003934,1721.1,1721.0,15.58993216]
[1693374830120,3.8081934,1721.1,1721.0,8.135]
[1693374833232,3.21180007,1721.1,1721.0,17.23753941]
[1693374834630,3.8081934,1721.1,1721.0,15.80395765]
[1693374837630,3.8081934,1721.1,1721.0,7.66895765]
[1693374837931,3.8081934,1721.1,1721.0,15.80395765]
[1693374838140,3.80419333,1721.1,1721.0,15.80395765]
[1693374839124,3.21164116,1721.1,1721.0,17.23753941]
[1693374839635,3.80803449,1721.1,1721.0,17.23753941]
[1693374840737,3.80803449,1721.1,1721.0,15.80395765]
[1693374841646,3.80803449,1721.1,1720.9,6.68620043]
[1693374841647,0.60023449,1721.1,1720.9,14.82120043]
[1693374841842,0.60023449,1721.1,1720.9,6.68620043]
[1693374842041,0.60023449,1721.1,1720.9,4.4365621]
[1693374843839,0.60023449,1721.1,1721.0,15.61407675]
[1693374846535,0.60023449,1721.1,1721.0,7.47907675]
[1693374846740,0.60023449,1721.1,1720.9,2.93680321]
[1693374847441,0.60023449,1721.1,1721.0,2.5774]
[1693374848248,0.60023449,1721.1,1721.0,16.73520358]
[1693374848447,0.00384116,1721.1,1721.0,19.00514006]
[1693374849152,3.2078,1721.3,1721.0,19.00514006]
[1693374849446,0.59639333,1721.2,1721.0,19.00514006]
[1693374850044,0.00383995,1721.1,1721.0,19.00514006]
[1693374851043,0.59639333,1721.2,1721.0,19.00514006]
[1693374851443,3.2078,1721.3,1721.1,1.43358176]
[1693374851647,3.80419333,1721.3,1721.1,1.43358176]
[1693374851949,3.80419333,1721.3,1721.1,5.231]
[1693374852249,0.00384943,1721.2,1721.1,5.231]
[1693374854350,0.00384943,1721.2,1721.1,6.66458176]
[1693374856348,0.60024276,1721.2,1721.1,6.66458176]
[1693374856850,3.63564374,1721.2,1721.1,6.66458176]
[1693374857649,3.63564374,1721.2,1721.1,5.231]
[1693374859054,3.64401755,1721.2,1721.1,5.231]
[1693374859750,0.60024276,1721.2,1721.1,5.231]
[1693374860352,4.35952447,1721.2,1721.1,5.231]
[1693374862156,4.35952447,1721.2,1721.1,5.70438323]
[1693374866651,0.60024276,1721.2,1721.1,5.70438323]
[1693374869655,5.11138081,1721.2,1721.1,5.70438323]
[1693374870759,5.86323715,1721.2,1721.1,5.70438323]
[1693374872665,5.86323715,1721.2,1721.1,5.231]
[1693374877867,5.93802819,1721.2,1721.1,5.231]
[1693374880870,0.60024276,1721.2,1721.1,5.231]
[1693374886473,6.70056896,1721.2,1721.1,5.231]
[1693374891074,0.60024276,1721.2,1721.1,5.231]
[1693374893769,6.70056896,1721.2,1721.1,5.231]
[1693374894380,5.93837167,1721.2,1721.1,5.231]
[1693374899081,0.60024276,1721.2,1721.1,5.231]
[1693374900284,5.93839424,1721.2,1721.1,5.231]
[1693374901384,0.60024276,1721.2,1721.1,5.231]
[1693374901580,6.70056896,1721.2,1721.1,5.231]
[1693374901880,6.70056896,1721.2,1721.0,2.5774]
[1693374902186,5.33812049,1721.1,1721.0,2.5774]
[1693374902381,5.73574382,1721.1,1721.0,2.5774]
[1693374903184,5.7395862,1721.1,1721.0,2.5774]
[1693374908693,14.94059191,1721.1,1721.0,2.5774]
[1693374911090,10.00266571,1721.1,1721.0,2.5774]
[1693374911486,22.9640796,1721.1,1721.0,2.5774]
[1693374911687,0.59639333,1721.0,1720.6,5.231]
[1693374911895,8.4388,1720.7,1720.4,6.75388612]
[1693374912192,4.5739273,1720.6,1720.4,5.231]
[1693374912386,0.59639333,1720.5,1720.4,5.231]
[1693374912587,4.40634495,1720.5,1720.4,5.231]
[1693374913192,4.41014498,1720.5,1720.4,5.231]
[1693374914893,4.41014498,1720.5,1720.4,10.3142]
[1693374918499,0.60019336,1720.5,1720.4,10.3142]
[1693374930218,0.00380003,1720.5,1720.4,11.74778176]
[1693374930421,0.00380003,1720.5,1720.4,19.25223049]
[1693374931217,8.90005044,1720.7,1720.4,19.25223049]
[1693374931516,0.59639333,1720.6,1720.4,19.25223049]
[1693374932014,0.59639333,1720.6,1720.5,5.231]
[1693374935621,3.2078,1720.7,1720.5,5.231]
[1693374935622,3.2078,1720.7,1720.5,7.50093648]
[1693374935818,3.80419333,1720.7,1720.5,7.50093648]
[1693374938228,3.80419333,1720.7,1720.5,5.231]
[1693374938626,7.61414495,1720.7,1720.5,5.231]
[1693374939828,3.80419333,1720.7,1720.5,5.231]
[1693374940728,5.231,1720.6,1720.4,5.0832]
[1693374941127,0.59639333,1720.5,1720.4,5.0832]
[1693374946129,0.60130683,1720.5,1720.4,5.0832]
[1693374952332,0.0049135,1720.5,1720.4,6.51678176]
[1693374952538,3.80820014,1720.5,1720.4,6.51678176]
[1693374952734,4.40459347,1720.5,1720.4,5.0832]
[1693374956637,0.60130683,1720.5,1720.4,5.0832]
[1693374957745,0.60130683,1720.5,1720.4,6.60343295]
[1693374958444,0.60130683,1720.5,1720.4,5.0832]
[1693374961347,0.0049135,1720.5,1720.4,6.51678176]
[1693374961948,0.0049135,1720.5,1720.4,11.74778176]
[1693374963048,0.60130683,1720.5,1720.4,11.74778176]
[1693374966850,4.41443677,1720.5,1720.4,13.26801471]
[1693374967850,3.81804344,1720.5,1720.4,13.26801471]
[1693374968456,0.0049135,1720.5,1720.4,27.85311738]
[1693374968944,0.0049135,1720.5,1720.4,29.37603896]
[1693374969343,0.0049135,1720.5,1720.4,27.85311738]
[1693374969749,0.0049135,1720.5,1720.4,29.37574237]
[1693374970749,0.0049135,1720.5,1720.4,27.09539295]
[1693374972245,3.81312994,1720.7,1720.4,27.09539295]
[1693374972553,3.81312994,1720.7,1720.6,5.231]
[1693374972852,3.81312994,1720.7,1720.6,12.81583554]
[1693374973251,3.81805999,1720.7,1720.6,12.81583554]
[1693374973554,4.41445332,1720.7,1720.6,12.81583554]
[1693374974054,4.41445332,1720.7,1720.6,7.58483554]
[1693374978557,4.41445332,1720.7,1720.6,11.4557173]
[1693374979250,3.81805999,1720.7,1720.6,16.6867173]
[1693374979455,0.00493005,1720.7,1720.6,19.8945173]
[1693374984162,3.81312994,1720.9,1720.6,19.8945173]
[1693374984460,3.81312994,1720.9,1720.8,5.231]
[1693374984662,4.40952327,1720.9,1720.8,5.231]
[1693374984861,4.40952327,1720.9,1720.8,7.6302]
[1693374985357,4.41446622,1720.9,1720.8,7.6302]
[1693374987258,0.60133628,1720.9,1720.8,7.6302]
[1693374988861,0.60133628,1720.9,1720.8,9.06378176]
[1693374989462,0.60133628,1720.9,1720.8,7.6302]
[1693374994078,0.60133628,1720.9,1720.8,2.3992]
[1693374994481,5.16528025,1720.9,1720.8,2.3992]
[1693374998777,5.16528025,1720.9,1720.8,3.83278176]
[1693375000175,5.16528025,1720.9,1720.8,2.3992]
[1693375003285,5.16528025,1720.9,1720.8,7.6302]
[1693375005084,0.60133628,1720.9,1720.8,7.6302]
[1693375007189,5.92593758,1720.9,1720.8,7.6302]
[1693375011887,5.92593758,1720.9,1720.8,2.3992]
[1693375017497,6.39496931,1720.9,1720.8,2.3992]
[1693375021392,6.39496931,1720.9,1720.8,3.83278176]
[1693375022193,6.39496931,1720.9,1720.8,2.3992]
[1693375027604,5.79857598,1720.9,1720.8,3.83278176]
[1693375029401,5.92593758,1720.9,1720.8,3.83278176]
[1693375029699,5.32954425,1720.9,1720.8,3.83278176]
[1693375031997,5.92593758,1720.9,1720.8,9.06378176]
[1693375032907,5.32954425,1720.9,1720.8,9.06378176]
[1693375035902,5.92593758,1720.9,1720.8,9.06378176]
[1693375045708,5.92593758,1720.9,1720.8,7.6302]
[1693375058334,5.92593758,1720.9,1720.8,9.06378176]
[1693375060331,5.32954425,1720.9,1720.8,9.06378176]
[1693375061538,5.92593758,1720.9,1720.8,7.6302]
[1693375061929,5.92593758,1720.9,1720.8,2.3992]
[1693375072845,0.60133628,1720.9,1720.8,2.3992]
[1693375073047,5.93998804,1720.9,1720.8,2.3992]
[1693375073744,6.40125373,1720.9,1720.8,2.3992]
[1693375088753,6.40190157,1720.9,1720.8,2.3992]
[1693375089241,1.06260197,1720.9,1720.8,2.3992]
[1693375089441,6.40189033,1720.9,1720.8,2.3992]
[1693375090145,1.06260197,1720.9,1720.8,2.3992]
[1693375090449,6.40189124,1720.9,1720.8,2.3992]
[1693375091049,1.06260197,1720.9,1720.8,2.3992]
[1693375091447,6.40186615,1720.9,1720.8,2.3992]
[1693375094457,1.06260197,1720.9,1720.8,2.3992]
[1693375096648,7.16391827,1720.9,1720.8,2.3992]
[1693375097457,1.06260197,1720.9,1720.8,2.3992]